fUST/lending_fUST_20251004
["ID","MTS","AMOUNT","RATE_DAILY","PERIOD"]
[389143869,1759590668043,-500.0,0.00020273,2]
[389143870,1759590668052,-151.0,0.00020273,2]
[389143871,1759590668063,-151.0,0.00020273,2]
[389143872,1759590668073,-165.579866,0.00020273,2]
[389143873,1759590668082,-151.0,0.00020273,2]
[389143874,1759590668091,-165.579866,0.00020273,2]
[389143875,1759590668100,-977.77,0.00020273,2]
[389143876,1759590668113,-151.0,0.00020273,2]
[389143877,1759590668122,-958.93,0.00020273,2]
[389143878,1759590668132,-165.579866,0.00020273,2]
[389143879,1759590668142,-151.0,0.00020273,2]
[389143880,1759590668152,-165.579866,0.00020273,2]
[389143881,1759590668161,-151.334355,0.00020273,2]
[389143882,1759590668171,-500.0,0.00020273,2]
[389143883,1759590668180,-151.0,0.00020273,2]
[389143884,1759590668190,-500.0,0.00020273,2]
[389143885,1759590668199,-1323.11,0.00020273,2]
[389143886,1759590668208,-500.0,0.00020273,2]
[389143887,1759590668218,-500.0,0.00020273,2]
[389143888,1759590668228,-500.0,0.00020273,2]
[389143889,1759590668237,-500.0,0.00020273,2]
[389143890,1759590668247,-1856.22,0.00020273,2]
[389143891,1759590668257,-1749.05,0.00020273,2]
[389143892,1759590668266,-768.13,0.00020273,2]
[389143893,1759590668275,-500.0,0.00020273,2]
[389143894,1759590668285,-170.871397,0.00020273,2]
[389143895,1759590668294,-170.871397,0.00020273,2]
[389143896,1759590668304,-170.871397,0.00020273,2]
[389143897,1759590668314,-170.871397,0.00020273,2]
[389143898,1759590668323,-500.0,0.00020273,2]
[389143899,1759590668333,-151.0,0.00020273,2]
[389143900,1759590668342,-500.0,0.00020273,2]
[389143901,1759590668352,-151.0,0.00020273,2]
[389143902,1759590668362,-151.0,0.00020273,2]
[389143903,1759590668371,-732.2,0.00020273,2]
[389143904,1759590668382,-283.13516296,0.00020273,2]
[389143905,1759590668392,-1738.11,0.00020273,2]
[389143906,1759590668402,-151.0,0.00020273,2]
[389143907,1759590668411,-151.0,0.00020273,2]
[389143908,1759590668421,-500.0,0.00020273,2]
[389143909,1759590668431,-500.0,0.00020273,2]
[389143910,1759590668440,-500.0,0.00020273,2]
[389143911,1759590668450,-3015.62,0.00020273,2]
[389143912,1759590668460,-1097.18,0.00020273,2]
[389143913,1759590668470,-1095.04,0.00020273,2]
[389143914,1759590668479,-500.0,0.00020273,2]
[389143915,1759590668489,-3353.07,0.00020273,2]
[389143916,1759590668498,-500.0,0.00020273,2]
[389143917,1759590668508,-500.0,0.00020273,2]
[389143918,1759590668517,-500.0,0.00020273,2]
[389143919,1759590668527,-500.0,0.00020273,2]
[389143920,1759590668538,-979.87,0.00020273,2]
[389143921,1759590668547,-500.0,0.00020273,2]
[389143922,1759590668559,-500.0,0.00020273,2]
[389143923,1759590668569,-556.58,0.00020273,2]
[389143924,1759590668579,-477.22318298,0.00020273,2]
[389143925,1759590668589,-602.05,0.00020273,2]
[389143926,1759590668600,-669.17,0.00020273,2]
[389143927,1759590668610,-2444.68,0.00020273,2]
[389143928,1759590668620,-700.63,0.00020273,2]
[389143929,1759590668630,-500.0,0.00020273,2]
[389143930,1759590668639,-1487.34,0.00020273,2]
[389143931,1759590668649,-501.72,0.00020273,2]
[389143932,1759590668658,-809.98,0.00020273,2]
[389143933,1759590668668,-3003.58,0.00020273,2]
[389143934,1759590668678,-4041.89,0.00020273,2]
[389143935,1759590668688,-500.0,0.00020273,2]
[389143936,1759590668698,-500.0,0.00020273,2]
[389143937,1759590668708,-550.31418726,0.00020273,2]
[389143938,1759590668718,-500.0,0.00020273,2]
[389143939,1759590668727,-588.7,0.00020273,2]
[389143940,1759590668736,-151.0,0.00020273,2]
[389143941,1759590668746,-500.0,0.00020273,2]
[389143942,1759590668755,-151.0,0.00020273,2]
[389143943,1759590668763,-1598.11,0.00020273,2]
[389143944,1759590668773,-151.0,0.00020273,2]
[389143945,1759590668782,-500.0,0.00020273,2]
[389143946,1759590668791,-151.0,0.00020273,2]
[389143947,1759590668801,-151.0,0.00020273,2]
[389143948,1759590668810,-243.704133,0.00020273,2]
[389143949,1759590668819,-542.75,0.00020273,2]
[389143950,1759590668829,-1068.6,0.00020273,2]
[389143951,1759590668839,-151.0,0.00020273,2]
[389143952,1759590668849,-153.613744,0.00020273,2]
[389143953,1759590668859,-268.265395,0.00020273,2]
[389143954,1759590668868,-151.0,0.00020273,2]
[389143955,1759590668877,-500.0,0.00020273,2]
[389143956,1759590668887,-500.0,0.00020273,2]
[389143957,1759590668897,-2368.12,0.00020273,2]
[389143958,1759590668907,-548.65,0.00020273,2]
[389143959,1759590668917,-1054.69,0.00020273,2]
[389143960,1759590668926,-500.0,0.00020273,2]
[389143961,1759590668935,-1050.17,0.00020273,2]
[389143962,1759590668944,-238.190311,0.00020273,2]
[389143963,1759590668954,-238.190311,0.00020273,2]
[389143964,1759590668963,-786.24,0.00020273,2]
[389143965,1759590668973,-232.342074,0.00020273,2]
[389143966,1759590668982,-238.190311,0.00020273,2]
[389143967,1759590668991,-1829.47,0.00020273,2]
[389143968,1759590669000,-232.342074,0.00020273,2]
[389143969,1759590669009,-791.1,0.00020273,2]
[389143970,1759590669018,-238.190311,0.00020273,2]
[389143971,1759590669028,-232.342074,0.00020273,2]
[389143972,1759590669037,-232.342074,0.00020273,2]
[389143973,1759590669046,-500.0,0.00020273,2]
[389143974,1759590669055,-647.62,0.00020273,2]
[389143975,1759590669064,-500.0,0.00020273,2]
[389143976,1759590669072,-500.0,0.00020273,2]
[389143977,1759590669082,-500.0,0.00020273,2]
[389143978,1759590669092,-151.0,0.00020273,2]
[389143979,1759590669101,-1868.16,0.00020273,2]
[389143980,1759590669110,-947.44,0.00020273,2]
[389143981,1759590669119,-1195.72,0.00020273,2]
[389143982,1759590669128,-3023.99,0.00020273,2]
[389143983,1759590669140,-594.18,0.00020273,2]
[389143984,1759590669149,-1450.46,0.00020273,2]
[389143985,1759590669158,-500.0,0.00020273,2]
[389143986,1759590669167,-500.0,0.00020273,2]
[389143987,1759590669176,-500.0,0.00020273,2]
[389143988,1759590669186,-500.0,0.00020273,2]
[389143989,1759590669195,-500.0,0.00020273,2]
[389143990,1759590669204,-1341.41,0.00020273,2]
[389143991,1759590669214,-503.24,0.00020273,2]
[389143992,1759590669223,-2415.19,0.00020273,2]
[389143993,1759590669232,-4325.59,0.00020273,2]
[389143994,1759590669241,-500.0,0.00020273,2]
[389143995,1759590669249,-483.43029706,0.00020273,2]
[389143996,1759590669258,-151.0,0.00020273,2]
[389143997,1759590669267,-2117.6,0.00020273,2]
[389143998,1759590669277,-616.75,0.00020273,2]
[389143999,1759590669286,-500.0,0.00020273,2]
[389144000,1759590669295,-894.18,0.00020273,2]
[389144001,1759590669304,-626.258136,0.00020273,2]
[389144002,1759590669313,-626.258136,0.00020273,2]
[389144003,1759590669322,-626.258136,0.00020273,2]
[389144004,1759590669332,-626.258136,0.00020273,2]
[389144005,1759590669341,-646.89,0.00020273,2]
[389144006,1759590669349,-6808.25,0.00020273,2]
[389144007,1759590669359,-500.0,0.00020273,2]
[389144008,1759590669367,-276.382728,0.00020273,2]
[389144009,1759590669376,-1219.82,0.00020273,2]
[389144010,1759590669386,-9676.674595,0.00020273,2]
[389144011,1759590669394,-151.0,0.00020273,2]
[389144012,1759590669403,-276.382728,0.00020273,2]
[389144013,1759590669412,-766.0,0.00020273,2]
[389144014,1759590669421,-576.19,0.00020273,2]
[389144015,1759590669430,-276.382728,0.00020273,2]
[389144016,1759590669440,-9676.674595,0.00020273,2]
[389144017,1759590669450,-151.0,0.00020273,2]
[389144018,1759590669459,-151.0,0.00020273,2]
[389144019,1759590669468,-276.382728,0.00020273,2]
[389144020,1759590669477,-501.11,0.00020273,2]
[389144021,1759590669486,-9676.674595,0.00020273,2]
[389144022,1759590669494,-500.0,0.00020273,2]
[389144023,1759590669503,-151.0,0.00020273,2]
[389144024,1759590669512,-9676.674595,0.00020273,2]
[389144025,1759590669521,-308.588538,0.00020273,2]
[389144026,1759590669531,-151.0,0.00020273,2]
[389144027,1759590669539,-838.57,0.00020273,2]
[389144028,1759590669548,-308.588538,0.00020273,2]
[389144029,1759590669557,-500.0,0.00020273,2]
[389144030,1759590669566,-308.588538,0.00020273,2]
[389144031,1759590669575,-1612.24,0.00020273,2]
[389144032,1759590669583,-500.0,0.00020273,2]
[389144033,1759590669592,-308.588538,0.00020273,2]
[389144034,1759590669601,-500.0,0.00020273,2]
[389144035,1759590669610,-223.459985,0.00020273,2]
[389144036,1759590669619,-151.0,0.00020273,2]
[389144037,1759590669629,-223.459985,0.00020273,2]
[389144038,1759590669639,-151.0,0.00020273,2]
[389144039,1759590669649,-223.459985,0.00020273,2]
[389144040,1759590669658,-151.0,0.00020273,2]
[389144041,1759590669668,-223.459985,0.00020273,2]
[389144042,1759590669677,-500.0,0.00020273,2]
[389144043,1759590669686,-1409.27,0.00020273,2]
[389144044,1759590669695,-151.0,0.00020273,2]
[389144045,1759590669704,-1345.42,0.00020273,2]
[389144046,1759590669714,-990.0,0.00020273,2]
[389144047,1759590669723,-500.0,0.00020273,2]
[389144048,1759590669732,-923.15,0.00020273,2]
[389144049,1759590669741,-271.8,0.00020273,2]
[389144050,1759590669750,-1493.73,0.00020273,2]
[389144051,1759590669759,-151.0,0.00020273,2]
[389144052,1759590669768,-330.744392,0.00020273,2]
[389144053,1759590669777,-500.0,0.00020273,2]
[389144054,1759590669889,-500.0,0.00020273,2]
[389144055,1759590669909,-151.0,0.00020273,2]
[389144056,1759590669918,-542.59,0.00020273,2]
[389144057,1759590669928,-763.547667,0.00020273,2]
[389144058,1759590669937,-1082.9,0.00020273,2]
[389144059,1759590669947,-763.547667,0.00020273,2]
[389144060,1759590669956,-1072.6,0.00020273,2]
[389144061,1759590669965,-1043.25,0.00020273,2]
[389144062,1759590669974,-763.547667,0.00020273,2]
[389144063,1759590669984,-500.0,0.00020273,2]
[389144064,1759590669993,-1131.17,0.00020273,2]
[389144065,1759590670002,-763.547667,0.00020273,2]
[389144066,1759590670011,-2361.16,0.00020273,2]
[389144067,1759590670021,-345.71553071,0.00020273,2]
[389144068,1759590670030,-500.0,0.00020273,2]
[389144069,1759590670040,-5225.58,0.00020273,2]
[389144070,1759590670049,-500.0,0.00020273,2]
[389144071,1759590670059,-985.70328,0.00020273,2]
[389144072,1759590670068,-151.0,0.00020273,2]
[389144073,1759590670077,-985.70328,0.00020273,2]
[389144074,1759590670086,-472.52244,0.00020273,2]
[389144075,1759590670095,-151.0,0.00020273,2]
[389144076,1759590670105,-985.70328,0.00020273,2]
[389144077,1759590670114,-472.52244,0.00020273,2]
[389144078,1759590670124,-151.0,0.00020273,2]
[389144079,1759590670137,-151.0,0.00020273,2]
[389144080,1759590670147,-500.0,0.00020273,2]
[389144081,1759590670156,-985.70328,0.00020273,2]
[389144082,1759590670166,-472.52244,0.00020273,2]
[389144083,1759590670175,-151.0,0.00020273,2]
[389144084,1759590670184,-151.0,0.00020273,2]
[389144085,1759590670193,-472.52244,0.00020273,2]
[389144086,1759590670202,-233.55157,0.00020273,2]
[389144087,1759590670212,-414.143484,0.00020273,2]
[389144088,1759590670221,-1448.44,0.00020273,2]
[389144089,1759590670230,-511.73,0.00020273,2]
[389144090,1759590670240,-414.143484,0.00020273,2]
[389144091,1759590670249,-632.45,0.00020273,2]
[389144092,1759590670258,-500.0,0.00020273,2]
[389144093,1759590670267,-606.37,0.00020273,2]
[389144094,1759590670276,-414.143484,0.00020273,2]
[389144095,1759590670285,-414.143484,0.00020273,2]
[389144096,1759590670294,-500.0,0.00020273,2]
[389144097,1759590670303,-1452.17,0.00020273,2]
[389144098,1759590670313,-647.03,0.00020273,2]
[389144099,1759590670323,-151.0,0.00020273,2]
[389144100,1759590670333,-1921.468988,0.00020273,2]
[389144101,1759590670342,-151.0,0.00020273,2]
[389144102,1759590670352,-326.305215,0.00020273,2]
[389144103,1759590670361,-500.0,0.00020273,2]
[389144104,1759590670370,-1921.468988,0.00020273,2]
[389144105,1759590670379,-151.0,0.00020273,2]
[389144106,1759590670388,-6915.55,0.00020273,2]
[389144107,1759590670398,-326.305215,0.00020273,2]
[389144108,1759590670407,-500.0,0.00020273,2]
[389144109,1759590670416,-1921.468988,0.00020273,2]
[389144110,1759590670425,-326.305215,0.00020273,2]
[389144111,1759590670435,-1921.468988,0.00020273,2]
[389144112,1759590670445,-550.847156,0.00020273,2]
[389144113,1759590670454,-500.0,0.00020273,2]
[389144114,1759590670464,-326.305215,0.00020273,2]
[389144115,1759590670474,-550.847156,0.00020273,2]
[389144116,1759590670483,-2266.98,0.00020273,2]
[389144117,1759590670493,-3328.29,0.00020273,2]
[389144118,1759590670502,-500.0,0.00020273,2]
[389144119,1759590670511,-550.847156,0.00020273,2]
[389144120,1759590670523,-550.847156,0.00020273,2]
[389144121,1759590670532,-500.0,0.00020273,2]
[389144122,1759590670541,-1023.24,0.00020273,2]
[389144123,1759590670551,-500.0,0.00020273,2]
[389144124,1759590670560,-1262.25,0.00020273,2]
[389144125,1759590670570,-500.0,0.00020273,2]
[389144126,1759590670579,-6120.99,0.00020273,2]
[389144127,1759590670588,-3854.46,0.00020273,2]
[389144128,1759590670598,-632.01,0.00020273,2]
[389144129,1759590670607,-500.0,0.00020273,2]
[389144130,1759590670616,-1243.803981,0.00020273,2]
[389144131,1759590670625,-500.0,0.00020273,2]
[389144132,1759590670635,-1243.803981,0.00020273,2]
[389144133,1759590670644,-500.0,0.00020273,2]
[389144134,1759590670654,-500.0,0.00020273,2]
[389144135,1759590670664,-500.0,0.00020273,2]
[389144136,1759590670673,-1243.803981,0.00020273,2]
[389144137,1759590670682,-151.0,0.00020273,2]
[389144138,1759590670691,-1243.803981,0.00020273,2]
[389144139,1759590670701,-500.0,0.00020273,2]
[389144140,1759590670710,-1031.38,0.00020273,2]
[389144141,1759590670718,-180.099124,0.00020273,2]
[389144142,1759590670728,-1428.16,0.00020273,2]
[389144143,1759590670738,-1606.82,0.00020273,2]
[389144144,1759590670748,-826.478215,0.00020273,2]
[389144145,1759590670758,-151.0,0.00020273,2]
[389144146,1759590670768,-500.0,0.00020273,2]
[389144147,1759590670777,-826.478215,0.00020273,2]
[389144148,1759590670786,-917.5,0.00020273,2]
[389144149,1759590670796,-4600.4,0.00020273,2]
[389144150,1759590670805,-551.75,0.00020273,2]
[389144151,1759590670815,-821.33,0.00020273,2]
[389144152,1759590670824,-151.0,0.00020273,2]
[389144153,1759590670833,-826.478215,0.00020273,2]
[389144154,1759590670843,-500.0,0.00020273,2]
[389144155,1759590670853,-639.03316648,0.00020274,2]
[389144156,1759590670862,-151.0,0.00020274,2]
[389144157,1759590670875,-500.0,0.00020274,2]
[389144158,1759590670885,-500.0,0.00020274,2]
[389144159,1759590670894,-151.0,0.00020274,2]
[389144160,1759590670903,-500.0,0.00020274,2]
[389144161,1759590670912,-500.0,0.00020274,2]
[389144162,1759590670922,-500.0,0.00020274,2]
[389144163,1759590670932,-151.0,0.00020274,2]
[389144164,1759590670941,-151.0,0.00020274,2]
[389144165,1759590670950,-151.0,0.00020274,2]
[389144166,1759590670959,-151.0,0.00020274,2]
[389144167,1759590670968,-151.0,0.00020274,2]
[389144168,1759590670978,-500.0,0.00020274,2]
[389144169,1759590670987,-151.0,0.00020274,2]
[389144170,1759590670997,-151.0,0.00020274,2]
[389144171,1759590671006,-151.0,0.00020274,2]
[389144172,1759590671015,-678.445089,0.00020274,2]
[389144173,1759590671025,-151.0,0.00020274,2]
[389144174,1759590671040,-678.445089,0.00020274,2]
[389144175,1759590671059,-678.445089,0.00020274,2]
[389144176,1759590671074,-678.445089,0.00020274,2]
[389144177,1759590671085,-478.534729,0.00020274,2]
[389144178,1759590671095,-478.534729,0.00020274,2]
[389144179,1759590671105,-478.534729,0.00020274,2]
[389144180,1759590671117,-478.534729,0.00020274,2]
[389144181,1759590671128,-151.0,0.00020274,2]
[389144182,1759590671138,-151.0,0.00020274,2]
[389144183,1759590671146,-151.0,0.00020274,2]
[389144184,1759590671155,-222.356868,0.00020274,2]
[389144185,1759590671164,-151.586398,0.00020274,2]
[389144186,1759590671174,-151.0,0.00020274,2]
[389144187,1759590671183,-151.0,0.00020274,2]
[389144188,1759590671192,-151.0,0.00020274,2]
[389144189,1759590671200,-172.788523,0.00020274,2]
[389144190,1759590671209,-151.0,0.00020274,2]
[389144191,1759590671218,-151.0,0.00020274,2]
[389144192,1759590671227,-251.601964,0.00020274,2]
[389144193,1759590671237,-251.601964,0.00020274,2]
[389144194,1759590671246,-251.601964,0.00020274,2]
[389144195,1759590671256,-251.601964,0.00020274,2]
[389144196,1759590671265,-163.02676,0.00020274,2]
[389144197,1759590671274,-163.02676,0.00020274,2]
[389144198,1759590671283,-163.02676,0.00020274,2]
[389144199,1759590671292,-163.02676,0.00020274,2]
[389144200,1759590671301,-500.0,0.00020274,2]
[389144201,1759590671310,-151.17647032,0.00020274,2]
[389144202,1759590671319,-232.14105881,0.00020274,2]
[389144203,1759590671328,-500.0,0.00020274,2]
[389144204,1759590671337,-151.0,0.00020274,2]
[389144205,1759590671347,-151.0,0.00020274,2]
[389144206,1759590671356,-500.0,0.00020274,2]
[389144207,1759590671366,-500.0,0.00020274,2]
[389144208,1759590671375,-151.0,0.00020274,2]
[389144209,1759590671385,-151.0,0.00020274,2]
[389144210,1759590671394,-500.0,0.00020274,2]
[389144211,1759590671403,-500.0,0.00020274,2]
[389144212,1759590671413,-151.0,0.00020274,2]
[389144213,1759590671422,-151.0,0.00020274,2]
[389144214,1759590671432,-1556.0,0.00020274,2]
[389144215,1759590671441,-1556.0,0.00020274,2]
[389144216,1759590671450,-151.0,0.00020274,2]
[389144217,1759590671460,-151.44785783,0.00020274,2]
[389144218,1759590671469,-500.0,0.00020274,2]
[389144219,1759590671478,-500.0,0.00020274,2]
[389144220,1759590671488,-324.08029068,0.00020274,2]
[389144221,1759590671498,-1000.0,0.00020321,2]
[389144222,1759590671507,-1680.0,0.00020386,2]
[389144223,1759590671517,-166.0,0.00020416,2]
[389144224,1759590671527,-500.0,0.00020449,2]
[389144225,1759590671537,-500.0,0.00020481,2]
[389144226,1759590671546,-2000.0,0.00020516,2]
[389144227,1759590671556,-2000.0,0.00020516,2]
[389144228,1759590671566,-1550.27627915,0.00020516,2]
[389144229,1759590671576,-1004.99689927,0.00020516,2]
[389144230,1759590671585,-524.19819651,0.00020516,2]
[389144231,1759590671595,-1381.22099437,0.00020516,2]
[389144232,1759590671605,-420.0,0.00020535,2]
[389144233,1759590671614,-811.0,0.00020541,2]
[389144234,1759590671624,-500.0,0.00020547,2]
[389144235,1759590671634,-500.0,0.00020547,2]
[389144236,1759590671643,-500.0,0.00020547,2]
[389144237,1759590671652,-500.0,0.00020547,2]
[389144238,1759590671662,-570.2,0.00020547,2]
[389144239,1759590671671,-500.0,0.00020547,2]
[389144240,1759590671681,-851.18,0.00020547,2]
[389144241,1759590671692,-443.17015291,0.00020547,2]
[389144242,1759590671701,-500.0,0.00020547,2]
[389144243,1759590671710,-500.0,0.00020547,2]
[389144244,1759590671720,-705.06,0.00020547,2]
[389144245,1759590671729,-151.0,0.00020547,2]
[389144246,1759590671739,-151.0,0.00020547,2]
[389144247,1759590671748,-151.0,0.00020547,2]
[389144248,1759590671757,-152.79694186,0.00020547,2]
[389144249,1759590671767,-500.0,0.00020547,2]
[389144250,1759590671882,-500.0,0.00020547,2]
[389144251,1759590671892,-151.0,0.00020547,2]
[389144252,1759590671902,-151.0,0.00020547,2]
[389144253,1759590671911,-168.498964,0.00020547,2]
[389144254,1759590671920,-151.0,0.00020547,2]
[389144255,1759590671929,-500.0,0.00020547,2]
[389144256,1759590671939,-151.0,0.00020547,2]
[389144257,1759590671948,-500.0,0.00020547,2]
[389144258,1759590671957,-151.0,0.00020547,2]
[389144259,1759590671966,-500.0,0.00020547,2]
[389144260,1759590671975,-1245.62,0.00020547,2]
[389144261,1759590671984,-500.0,0.00020547,2]
[389144262,1759590671993,-151.0,0.00020547,2]
[389144263,1759590672003,-1777.82,0.00020547,2]
[389144264,1759590672012,-500.0,0.00020547,2]
[389144265,1759590672021,-151.0,0.00020547,2]
[389144266,1759590672030,-151.0,0.00020547,2]
[389144267,1759590672040,-151.0,0.00020547,2]
[389144268,1759590672049,-151.0,0.00020547,2]
[389144269,1759590672058,-921.66,0.00020547,2]
[389144270,1759590672067,-500.0,0.00020547,2]
[389144271,1759590672076,-500.0,0.00020547,2]
[389144272,1759590672085,-151.0,0.00020547,2]
[389144273,1759590672095,-500.0,0.00020547,2]
[389144274,1759590672104,-151.0,0.00020547,2]
[389144275,1759590672114,-1196.39,0.00020547,2]
[389144276,1759590672123,-500.0,0.00020547,2]
[389144277,1759590672138,-500.0,0.00020547,2]
[389144278,1759590672147,-529.14,0.00020547,2]
[389144279,1759590672156,-500.0,0.00020547,2]
[389144280,1759590672165,-534.32,0.00020547,2]
[389144281,1759590672176,-445.39405772,0.00020547,2]
[389144282,1759590672185,-500.0,0.00020547,2]
[389144283,1759590672195,-1227.79,0.00020547,2]
[389144284,1759590672204,-500.0,0.00020547,2]
[389144285,1759590672214,-500.0,0.00020547,2]
[389144286,1759590672223,-500.0,0.00020547,2]
[389144287,1759590672233,-1123.99,0.00020547,2]
[389144288,1759590672243,-513.6,0.00020547,2]
[389144289,1759590672252,-500.0,0.00020547,2]
[389144290,1759590672261,-362.93848032,0.00020547,2]
[389144291,1759590672271,-151.0,0.00020547,2]
[389144292,1759590672280,-500.0,0.00020547,2]
[389144293,1759590672290,-151.0,0.00020547,2]
[389144294,1759590672299,-151.0,0.00020547,2]
[389144295,1759590672309,-500.0,0.00020547,2]
[389144296,1759590672318,-871.48,0.00020547,2]
[389144297,1759590672328,-663.01,0.00020547,2]
[389144298,1759590672336,-500.0,0.00020547,2]
[389144299,1759590672346,-1603.11,0.00020547,2]
[389144300,1759590672356,-185.947866,0.00020547,2]
[389144301,1759590672365,-564.32,0.00020547,2]
[389144302,1759590672375,-185.947866,0.00020547,2]
[389144303,1759590672389,-185.947866,0.00020547,2]
[389144304,1759590672398,-185.947866,0.00020547,2]
[389144305,1759590672407,-500.0,0.00020547,2]
[389144306,1759590672417,-2830.57,0.00020547,2]
[389144307,1759590672426,-500.0,0.00020547,2]
[389144308,1759590672436,-500.0,0.00020547,2]
[389144309,1759590672446,-151.0,0.00020547,2]
[389144310,1759590672455,-500.0,0.00020547,2]
[389144311,1759590672464,-500.0,0.00020547,2]
[389144312,1759590672473,-151.0,0.00020547,2]
[389144313,1759590672483,-500.0,0.00020547,2]
[389144314,1759590672493,-500.0,0.00020547,2]
[389144315,1759590672503,-500.0,0.00020547,2]
[389144316,1759590672513,-500.0,0.00020547,2]
[389144317,1759590672522,-403.83423856,0.00020547,2]
[389144318,1759590672531,-500.0,0.00020547,2]
[389144319,1759590672541,-500.0,0.00020547,2]
[389144320,1759590672550,-500.0,0.00020547,2]
[389144321,1759590672559,-1054.46,0.00020547,2]
[389144322,1759590672568,-1656.64,0.00020547,2]
[389144323,1759590672578,-151.0,0.00020547,2]
[389144324,1759590672587,-500.0,0.00020547,2]
[389144325,1759590672596,-151.0,0.00020547,2]
[389144326,1759590672605,-151.0,0.00020547,2]
[389144327,1759590672615,-500.0,0.00020547,2]
[389144328,1759590672624,-500.0,0.00020547,2]
[389144329,1759590672634,-500.0,0.00020547,2]
[389144330,1759590672644,-500.0,0.00020547,2]
[389144331,1759590672653,-537.94,0.00020547,2]
[389144332,1759590672661,-151.0,0.00020547,2]
[389144333,1759590672671,-978.72,0.00020547,2]
[389144334,1759590672680,-500.0,0.00020547,2]
[389144335,1759590672689,-500.0,0.00020547,2]
[389144336,1759590672699,-765.99,0.00020547,2]
[389144337,1759590672708,-958.69,0.00020547,2]
[389144338,1759590672718,-1025.98,0.00020547,2]
[389144339,1759590672727,-562.14,0.00020547,2]
[389144340,1759590672737,-500.0,0.00020547,2]
[389144341,1759590672746,-605.37579285,0.00020547,2]
[389144342,1759590672755,-500.0,0.00020547,2]
[389144343,1759590672764,-533.74,0.00020547,2]
[389144344,1759590672774,-500.0,0.00020547,2]
[389144345,1759590672783,-500.0,0.00020547,2]
[389144346,1759590672793,-375.181838,0.00020547,2]
[389144347,1759590672803,-709.18,0.00020547,2]
[389144348,1759590672815,-151.0,0.00020547,2]
[389144349,1759590672825,-555.69,0.00020547,2]
[389144350,1759590672834,-375.181838,0.00020547,2]
[389144351,1759590672844,-500.0,0.00020547,2]
[389144352,1759590672853,-500.0,0.00020547,2]
[389144353,1759590672863,-375.181838,0.00020547,2]
[389144354,1759590672873,-151.0,0.00020547,2]
[389144355,1759590672884,-375.181838,0.00020547,2]
[389144356,1759590672893,-508.88,0.00020547,2]
[389144357,1759590672903,-664.88,0.00020547,2]
[389144358,1759590672914,-500.0,0.00020547,2]
[389144359,1759590672924,-359.8042534,0.00020547,2]
[389144360,1759590672934,-3239.32,0.00020547,2]
[389144361,1759590672944,-668.88,0.00020547,2]
[389144362,1759590672955,-536.72147794,0.00020547,2]
[389144363,1759590672965,-561.44,0.00020547,2]
[389144364,1759590672975,-2075.26,0.00020547,2]
[389144365,1759590672985,-500.0,0.00020547,2]
[389144366,1759590672995,-500.0,0.00020547,2]
[389144367,1759590673005,-500.0,0.00020547,2]
[389144368,1759590673015,-500.0,0.00020547,2]